fUSD/lending_fUSD_20251017
["ID","MTS","AMOUNT","RATE_DAILY","PERIOD"]
[391666908,1760723467223,-150.0,0.00033875,7]
[391666909,1760723467233,-150.0,0.00033875,7]
[391666910,1760723467243,-188.88797475,0.00033886,7]
[391666911,1760723467253,-150.0,0.0003389,7]
[391666912,1760723467263,-150.0,0.00033906,7]
[391666913,1760723467273,-150.0,0.00033906,7]
[391666914,1760723467283,-150.0,0.00033906,7]
[391666915,1760723467293,-5377.53426996,0.00033909,2]
[391666916,1760723467302,-150.0,0.00033912,7]
[391666917,1760723467312,-469.66353557,0.00033919,2]
[391666918,1760723467322,-188.88797475,0.00033922,7]
[391666919,1760723467332,-150.0,0.00033949,7]
[391666920,1760723467341,-150.0,0.00033949,7]
[391666921,1760723467354,-150.0,0.00033952,7]
[391666922,1760723467364,-188.88797475,0.00033958,7]
[391666923,1760723467373,-1579.12,0.00033972,120]
[391666924,1760723467383,-1444.0,0.00033973,120]
[391666925,1760723467392,-150.0,0.00033979,7]
[391666926,1760723467402,-150.0,0.00033986,7]
[391666927,1760723467412,-150.0,0.00033986,7]
[391666928,1760723467422,-188.88797475,0.00033993,7]
[391666929,1760723467431,-150.0,0.00033998,7]
[391666930,1760723467441,-153.0,0.00034,120]
[391666931,1760723467450,-150.0,0.00034008,7]
[391666932,1760723467460,-150.0,0.00034008,7]
[391666933,1760723467470,-150.0,0.00034008,7]
[391666934,1760723467479,-150.0,0.00034008,7]
[391666935,1760723467489,-150.0,0.00034008,7]
[391666936,1760723467498,-150.0,0.00034022,7]
[391666937,1760723467508,-188.88797475,0.00034029,7]
[391666938,1760723467518,-150.0,0.00034044,7]
[391666939,1760723467527,-150.0,0.00034051,7]
[391666940,1760723467537,-150.0,0.00034059,7]
[391666941,1760723467547,-188.88797475,0.00034065,7]
[391666942,1760723467556,-150.0,0.00034067,7]
[391666943,1760723467567,-150.0,0.0003409,7]
[391666944,1760723467576,-150.0,0.00034096,7]
[391666945,1760723467586,-150.0,0.00034096,7]
[391666946,1760723467602,-1143.0,0.000341,2]
[391666947,1760723467611,-725.14,0.000341,2]
[391666948,1760723467621,-723.93,0.000341,30]
[391666949,1760723467631,-188.88797475,0.00034101,7]
[391666950,1760723467641,-500.0,0.00034123,2]
[391666951,1760723467650,-150.0,0.00034123,7]
[391666952,1760723467661,-150.0,0.00034126,7]
[391666953,1760723467672,-150.0,0.00034133,7]
[391666954,1760723467682,-150.0,0.00034136,7]
[391666955,1760723467692,-188.88797475,0.00034136,7]
[391666956,1760723467701,-150.0,0.00034136,7]
[391666957,1760723467711,-150.0,0.00034149,7]
[391666958,1760723467720,-150.0,0.0003417,7]
[391666959,1760723467730,-188.88797475,0.00034172,7]
[391666960,1760723467739,-500.0,0.00034175,17]
[391666961,1760723467748,-1199.37,0.00034176,2]
[391666962,1760723467757,-1199.37,0.00034176,2]
[391666963,1760723467767,-1199.37,0.00034176,2]
[391666964,1760723467776,-1199.37,0.00034176,2]
[391666965,1760723467785,-2398.74,0.00034176,2]
[391666966,1760723467794,-1199.37,0.00034176,2]
[391666967,1760723467804,-1199.37,0.00034176,2]
[391666968,1760723467813,-1199.37,0.00034176,2]
[391666969,1760723467823,-150.0,0.00034182,7]
[391666970,1760723467833,-150.0,0.00034185,7]
[391666971,1760723467842,-150.0,0.00034185,7]
[391666972,1760723467852,-150.0,0.00034185,7]
[391666973,1760723467861,-150.0,0.00034196,7]
[391666974,1760723467871,-150.0,0.00034207,7]
[391666975,1760723467881,-150.0,0.00034207,7]
[391666976,1760723467892,-188.88797475,0.00034208,7]
[391666977,1760723467902,-150.0,0.00034229,7]
[391666978,1760723467911,-1087.96992,0.0003424,2]
[391666979,1760723467921,-150.0,0.00034244,7]
[391666980,1760723467931,-150.0,0.00034244,7]
[391666981,1760723467940,-188.88797475,0.00034244,7]
[391666982,1760723467950,-150.0,0.00034244,7]
[391666983,1760723467960,-150.0,0.00034244,7]
[391666984,1760723467969,-327.3455537,0.00034246,120]
[391666985,1760723467979,-1032.0,0.00034247,120]
[391666986,1760723467988,-150.0,0.00034268,7]
[391666987,1760723467997,-150.0,0.00034275,7]
[391666988,1760723468007,-152.0,0.00034278,5]
[391666989,1760723468017,-188.88797475,0.0003428,7]
[391666990,1760723468027,-150.0,0.00034281,7]
[391666991,1760723468038,-150.0,0.00034291,7]
[391666992,1760723468048,-150.0,0.00034303,7]
[391666993,1760723468059,-200.0,0.00034309,10]
[391666994,1760723468070,-188.88797475,0.00034315,7]
[391666995,1760723468082,-150.0,0.00034318,7]
[391666996,1760723468093,-150.0,0.00034318,7]
[391666997,1760723468108,-150.0,0.00034321,7]
[391666998,1760723468118,-386.87667747,0.00034323,2]
[391666999,1760723468130,-309.29654756,0.00034323,2]
[391667000,1760723468139,-150.0,0.0003434,7]
[391667001,1760723468149,-188.88797475,0.00034351,7]
[391667002,1760723468159,-150.0,0.00034355,7]
[391667003,1760723468169,-150.0,0.00034362,7]
[391667004,1760723468179,-150.0,0.00034362,7]
[391667005,1760723468188,-150.0,0.00034362,7]
[391667006,1760723468199,-150.0,0.00034362,7]
[391667007,1760723468209,-150.0,0.00034367,7]
[391667008,1760723468219,-188.88797475,0.00034387,7]
[391667009,1760723468229,-150.0,0.00034391,7]
[391667010,1760723468239,-179.0,0.000344,120]
[391667011,1760723468249,-150.0,0.00034413,7]
[391667012,1760723468259,-150.0,0.00034413,7]
[391667013,1760723468270,-150.0,0.00034413,7]
[391667014,1760723468279,-150.0,0.00034421,7]
[391667015,1760723468289,-188.88797475,0.00034423,7]
[391667016,1760723468299,-150.0,0.00034428,7]
[391667017,1760723468308,-150.0,0.00034428,7]
[391667018,1760723468318,-150.0,0.00034433,7]
[391667019,1760723468327,-150.0,0.00034459,7]
[391667020,1760723468337,-188.88797475,0.00034459,7]
[391667021,1760723468347,-150.0,0.00034459,7]
[391667022,1760723468359,-150.0,0.00034465,7]
[391667023,1760723468371,-1087.96993,0.0003448,2]
[391667024,1760723468381,-150.0,0.0003448,7]
[391667025,1760723468390,-150.0,0.00034485,7]
[391667026,1760723468400,-188.88797475,0.00034494,7]
[391667027,1760723468410,-150.0,0.00034502,7]
[391667028,1760723468419,-150.0,0.00034505,7]
[391667029,1760723468429,-1900.0,0.00034526,7]
[391667030,1760723468438,-600.0,0.00034526,7]
[391667031,1760723468447,-500.0,0.00034526,7]
[391667032,1760723468457,-188.88797475,0.0003453,7]
[391667033,1760723468467,-150.0,0.00034539,7]
[391667034,1760723468477,-150.0,0.00034539,7]
[391667035,1760723468487,-150.0,0.00034539,7]
[391667036,1760723468497,-150.0,0.00034539,7]
[391667037,1760723468507,-150.0,0.00034539,7]
[391667038,1760723468516,-150.0,0.00034539,7]
[391667039,1760723468530,-150.0,0.00034551,7]
[391667040,1760723468540,-150.0,0.00034557,7]
[391667041,1760723468549,-188.88797475,0.00034566,7]
[391667042,1760723468559,-150.0,0.00034574,7]
[391667043,1760723468568,-150.0,0.00034576,7]
[391667044,1760723468578,-151.0,0.00034587,2]
[391667045,1760723468588,-151.0,0.00034587,2]
[391667046,1760723468605,-1087.96992,0.00034587,2]
[391667047,1760723468615,-150.0,0.00034597,7]
[391667048,1760723468624,-150.0,0.00034598,7]
[391667049,1760723468635,-188.88797475,0.00034602,7]
[391667050,1760723468644,-150.0,0.00034613,7]
[391667051,1760723468654,-150.0,0.00034629,7]
[391667052,1760723468663,-188.88797475,0.00034637,7]
[391667053,1760723468675,-150.0,0.00034643,7]
[391667054,1760723468686,-150.0,0.0003465,7]
[391667055,1760723468696,-150.0,0.0003465,7]
[391667056,1760723468705,-150.0,0.00034657,7]
[391667057,1760723468715,-188.88797475,0.00034673,7]
[391667058,1760723468725,-150.0,0.00034687,7]
[391667059,1760723468735,-150.0,0.00034689,7]
[391667060,1760723468744,-500.0,0.00034689,17]
[391667061,1760723468755,-522.26,0.00034689,17]
[391667062,1760723468764,-212.98,0.00034699,17]
[391667063,1760723468774,-500.0,0.00034699,2]
[391667064,1760723468784,-162.43040714,0.000347,7]
[391667065,1760723468793,-33121.9923,0.000347,2]
[391667066,1760723468803,-2002.1577,0.000347,2]
[391667067,1760723468812,-192591.1938,0.000347,2]
[391667068,1760723468822,-1000.0,0.000347,2]
[391667069,1760723468832,-5000.0,0.000347,2]
[391667070,1760723468842,-150.0,0.00034702,7]
[391667071,1760723468853,-188.88797475,0.00034709,7]
[391667072,1760723468863,-150.0,0.00034716,7]
[391667073,1760723468873,-150.0,0.00034716,7]
[391667074,1760723468883,-150.0,0.00034716,7]
[391667075,1760723468894,-150.0,0.00034716,7]
[391667076,1760723468904,-150.0,0.00034716,7]
[391667077,1760723468914,-150.0,0.00034724,7]
[391667078,1760723468924,-1087.96992,0.0003473,2]
[391667079,1760723468935,-150.0,0.00034735,7]
[391667080,1760723468946,-188.88797475,0.00034745,7]
[391667081,1760723468955,-150.0,0.0003476,7]
[391667082,1760723468966,-150.0,0.0003476,7]
[391667083,1760723468976,-500.0,0.00034765,120]
[391667084,1760723468986,-250.0,0.0003477,2]
[391667085,1760723468995,-300.0,0.0003477,2]
[391667086,1760723469005,-150.0,0.00034774,7]
[391667087,1760723469015,-150.0,0.00034775,7]
[391667088,1760723469026,-150.0,0.00034781,7]
[391667089,1760723469036,-188.88797475,0.00034781,7]
[391667090,1760723469046,-150.0,0.00034781,7]
[391667091,1760723469056,-750.0,0.00034794,30]
[391667092,1760723469065,-161.76895716,0.00034797,2]
[391667093,1760723469075,-151.0,0.00034797,14]
[391667094,1760723469085,-150.0,0.00034797,7]
[391667095,1760723469095,-516.09,0.00034799,2]
[391667096,1760723469106,-527.27,0.00034799,2]
[391667097,1760723469116,-515.8,0.00034799,2]
[391667098,1760723469126,-529.02,0.00034799,2]
[391667099,1760723469135,-535.23,0.00034799,2]
[391667100,1760723469145,-520.25,0.00034799,2]
[391667101,1760723469155,-515.94,0.00034799,2]
[391667102,1760723469165,-519.1,0.00034799,2]
[391667103,1760723469175,-570.53026194,0.00034799,17]
[391667104,1760723469184,-500.0,0.00034799,17]
[391667105,1760723469194,-397.75076475,0.00034799,17]
[391667106,1760723469203,-500.0,0.00034799,17]
[391667107,1760723469213,-500.0,0.00034799,17]
[391667108,1760723469222,-507.1119946,0.00034799,17]
[391667109,1760723469233,-500.0,0.00034799,17]
[391667110,1760723469252,-2000.0,0.00034799,120]
[391667111,1760723469265,-500.0,0.00034799,120]
[391667112,1760723469275,-151.0,0.00034799,30]
[391667113,1760723469286,-600.0,0.00034799,30]
[391667114,1760723469295,-151.0,0.00034799,30]
[391667115,1760723469305,-1000.0,0.00034799,30]
[391667116,1760723469314,-300.0,0.00034799,30]
[391667117,1760723469324,-151.0,0.00034799,30]
[391667118,1760723469333,-6888.0,0.00034799,30]
[391667119,1760723469343,-520.0,0.00034799,30]
[391667120,1760723469355,-600.0,0.00034799,30]
[391667121,1760723469365,-151.0,0.00034799,30]
[391667122,1760723469374,-1000.0,0.00034799,30]
[391667123,1760723469384,-311.1,0.00034799,30]
[391667124,1760723469393,-7142.856,0.00034799,30]
[391667125,1760723469403,-151.0,0.00034799,30]
[391667126,1760723469412,-156.587,0.00034799,30]
[391667127,1760723469421,-539.24,0.00034799,30]
[391667128,1760723469431,-600.0,0.00034799,30]
[391667129,1760723469440,-151.0,0.00034799,30]
[391667130,1760723469450,-7407.141672,0.00034799,30]
[391667131,1760723469459,-1000.0,0.00034799,30]
[391667132,1760723469468,-600.0,0.00034799,30]
[391667133,1760723469477,-151.0,0.00034799,30]
[391667134,1760723469487,-7681.20591386,0.00034799,30]
[391667135,1760723469502,-162.380719,0.00034799,30]
[391667136,1760723469516,-1000.0,0.00034799,30]
[391667137,1760723469525,-600.0,0.00034799,30]
[391667138,1760723469534,-151.0,0.00034799,30]
[391667139,1760723469656,-7965.41053268,0.00034799,30]
[391667140,1760723469670,-168.3888056,0.00034799,30]
[391667141,1760723469686,-1000.0,0.00034799,30]
[391667142,1760723469695,-600.0,0.00034799,30]
[391667143,1760723469705,-250.0,0.00034799,30]
[391667144,1760723469714,-559.19188,0.00034799,30]
[391667145,1760723469723,-8260.13072239,0.00034799,30]
[391667146,1760723469733,-174.61919141,0.00034799,30]
[391667147,1760723469743,-151.0,0.00034799,30]
[391667148,1760723469752,-600.0,0.00034799,30]
[391667149,1760723469762,-250.0,0.00034799,30]
[391667150,1760723469771,-579.88197956,0.00034799,30]
[391667151,1760723469780,-151.0,0.00034799,30]
[391667152,1760723469790,-8565.75555911,0.00034799,30]
[391667153,1760723469800,-181.08010149,0.00034799,30]
[391667154,1760723469810,-1000.0,0.00034799,30]
[391667155,1760723469819,-151.0,0.00034799,30]
[391667156,1760723469829,-600.0,0.00034799,30]
[391667157,1760723469838,-250.0,0.00034799,30]
[391667158,1760723469848,-601.3376128,0.00034799,30]
[391667159,1760723469860,-151.0,0.00034799,30]
[391667160,1760723469870,-187.78006525,0.00034799,30]
[391667161,1760723469880,-1000.0,0.00034799,30]
[391667162,1760723469890,-250.0,0.00034799,30]
[391667163,1760723469900,-623.58710448,0.00034799,30]
[391667164,1760723469910,-600.0,0.00034799,30]
[391667165,1760723469919,-151.0,0.00034799,30]
[391667166,1760723469929,-646.65982734,0.00034799,30]
[391667167,1760723469939,-600.0,0.00034799,30]
[391667168,1760723469948,-250.0,0.00034799,30]
[391667169,1760723469959,-151.0,0.00034799,30]
[391667170,1760723469969,-220.0,0.00034799,30]
[391667171,1760723469979,-250.0,0.00034799,30]
[391667172,1760723469988,-151.0,0.00034799,30]
[391667173,1760723469998,-220.0,0.00034799,30]
[391667174,1760723470008,-250.0,0.00034799,30]
[391667175,1760723470018,-151.0,0.00034799,30]
[391667176,1760723470028,-220.0,0.00034799,30]
[391667177,1760723470038,-151.0,0.00034799,30]
[391667178,1760723470047,-160.0,0.00034799,30]
[391667179,1760723470057,-500.0,0.00034799,30]
[391667180,1760723470067,-160.0,0.00034799,30]
[391667181,1760723470076,-1000.0,0.00034799,30]
[391667182,1760723470086,-500.0,0.00034799,30]
[391667183,1760723470096,-160.0,0.00034799,30]
[391667184,1760723470107,-1000.0,0.00034799,30]
[391667185,1760723470117,-500.0,0.00034799,30]
[391667186,1760723470127,-160.0,0.00034799,30]
[391667187,1760723470136,-1000.0,0.00034799,30]
[391667188,1760723470146,-500.0,0.00034799,30]
[391667189,1760723470156,-160.0,0.00034799,30]
[391667190,1760723470166,-500.0,0.00034799,30]
[391667191,1760723470175,-1000.0,0.00034799,30]
[391667192,1760723470185,-500.0,0.00034799,30]
[391667193,1760723470195,-160.0,0.00034799,30]
[391667194,1760723470203,-518.5,0.00034799,30]
[391667195,1760723470213,-500.0,0.00034799,30]
[391667196,1760723470222,-160.0,0.00034799,30]
[391667197,1760723470231,-1000.0,0.00034799,30]
[391667198,1760723470240,-537.6845,0.00034799,30]
[391667199,1760723470250,-500.0,0.00034799,30]
[391667200,1760723470259,-1000.0,0.00034799,30]
[391667201,1760723470268,-557.5788265,0.00034799,30]
[391667202,1760723470277,-151.0,0.00034799,30]
[391667203,1760723470287,-1000.0,0.00034799,30]
[391667204,1760723470297,-578.20924308,0.00034799,30]
[391667205,1760723470307,-151.0,0.00034799,30]
[391667206,1760723470316,-599.60298507,0.00034799,30]
[391667207,1760723470326,-250.0,0.00034799,30]
[391667208,1760723470335,-151.0,0.00034799,30]
[391667209,1760723470345,-621.78829552,0.00034799,30]
[391667210,1760723470355,-250.0,0.00034799,30]
[391667211,1760723470364,-151.0,0.00034799,30]
[391667212,1760723470374,-250.0,0.00034799,30]
[391667213,1760723470383,-151.0,0.00034799,30]
[391667214,1760723470392,-3000.0,0.00034799,30]
[391667215,1760723470402,-250.0,0.00034799,30]
[391667216,1760723470412,-151.0,0.00034799,30]
[391667217,1760723470421,-3000.0,0.00034799,30]
[391667218,1760723470430,-151.0,0.00034799,30]
[391667219,1760723470440,-250.0,0.00034799,30]
[391667220,1760723470449,-151.0,0.00034799,30]
[391667221,1760723470458,-3000.0,0.00034799,30]
[391667222,1760723470468,-151.0,0.00034799,30]
[391667223,1760723470477,-3000.0,0.00034799,30]
[391667224,1760723470486,-250.0,0.00034799,30]
[391667225,1760723470496,-151.0,0.00034799,30]
[391667226,1760723470505,-151.0,0.00034799,30]
[391667227,1760723470514,-3000.0,0.00034799,30]
[391667228,1760723470524,-1000.0,0.00034799,30]
[391667229,1760723470533,-151.0,0.00034799,30]
[391667230,1760723470543,-151.0,0.00034799,30]
[391667231,1760723470552,-3000.0,0.00034799,30]
[391667232,1760723470561,-250.0,0.00034799,30]
[391667233,1760723470571,-1000.0,0.00034799,30]
[391667234,1760723470580,-151.0,0.00034799,30]
[391667235,1760723470591,-151.0,0.00034799,30]
[391667236,1760723470603,-3000.0,0.00034799,30]
[391667237,1760723470612,-1000.0,0.00034799,30]
[391667238,1760723470622,-151.0,0.00034799,30]
[391667239,1760723470631,-151.0,0.00034799,30]
[391667240,1760723470641,-1000.0,0.00034799,30]
[391667241,1760723470650,-151.0,0.00034799,30]
[391667242,1760723470659,-151.0,0.00034799,30]
[391667243,1760723470672,-1000.0,0.00034799,30]
[391667244,1760723470682,-151.0,0.00034799,30]
[391667245,1760723470691,-1000.0,0.00034799,30]
[391667246,1760723470701,-151.0,0.00034799,30]
[391667247,1760723470711,-1000.0,0.00034799,30]
[391667248,1760723470721,-200.0,0.00034799,30]
[391667249,1760723470731,-207.4,0.00034799,30]
[391667250,1760723470741,-215.0738,0.00034799,30]
[391667251,1760723470750,-223.0315306,0.00034799,30]
[391667252,1760723470759,-231.28369723,0.00034799,30]
[391667253,1760723470768,-239.84119403,0.00034799,30]
[391667254,1760723470777,-250.0,0.00034799,30]
[391667255,1760723470787,-248.71531821,0.00034799,30]
[391667256,1760723470796,-250.0,0.00034799,30]
[391667257,1760723470805,-250.0,0.00034799,30]
[391667258,1760723470814,-250.0,0.00034799,30]
[391667259,1760723470823,-250.0,0.00034799,30]
[391667260,1760723470833,-250.0,0.00034799,30]
[391667261,1760723470843,-250.0,0.00034799,30]
[391667262,1760723470853,-500.0,0.00034799,30]
[391667263,1760723470863,-500.0,0.00034799,30]
[391667264,1760723470873,-500.0,0.00034799,30]
[391667265,1760723470882,-500.0,0.00034799,30]
[391667266,1760723470892,-500.0,0.00034799,30]
[391667267,1760723470901,-500.0,0.00034799,30]
[391667268,1760723470911,-500.0,0.00034799,30]
[391667269,1760723470921,-250.0,0.00034799,30]
[391667270,1760723470931,-250.0,0.00034799,30]
[391667271,1760723470940,-250.0,0.00034799,30]
[391667272,1760723470955,-250.0,0.00034799,30]
[391667273,1760723470969,-250.0,0.00034799,30]
[391667274,1760723470979,-250.0,0.00034799,30]
[391667275,1760723470989,-250.0,0.00034799,30]
[391667276,1760723470999,-500.0,0.00034799,2]
[391667277,1760723471010,-500.0,0.00034799,2]
[391667278,1760723471019,-500.0,0.00034799,2]
[391667279,1760723471029,-303.04,0.00034799,2]
[391667280,1760723471039,-1053620.19089242,0.000348,120]
[391667281,1760723471049,-51649.36043081,0.000348,2]
[391667282,1760723471060,-1000.0,0.000348,30]
[391667283,1760723471070,-1000.0,0.000348,30]
[391667284,1760723471081,-1000.0,0.000348,30]
[391667285,1760723471091,-1000.0,0.000348,30]
[391667286,1760723471101,-1000.0,0.000348,30]
[391667287,1760723471113,-1000.0,0.000348,30]
[391667288,1760723471123,-1000.0,0.000348,30]
[391667289,1760723471133,-1000.0,0.000348,30]
[391667290,1760723471143,-1000.0,0.000348,30]
[391667291,1760723471153,-1000.0,0.000348,30]
[391667292,1760723471163,-1000.0,0.000348,30]
[391667293,1760723471172,-272.71869196,0.000348,30]
[391667294,1760723471181,-150.0,0.000348,60]
[391667295,1760723471191,-150.0,0.000348,60]
[391667296,1760723471201,-150.0,0.000348,60]
[391667297,1760723471210,-500.0,0.000348,60]
[391667298,1760723471219,-500.0,0.000348,60]
[391667299,1760723471229,-500.0,0.000348,60]
[391667300,1760723471238,-150.0,0.000348,60]
[391667301,1760723471247,-500.0,0.000348,60]
[391667302,1760723471256,-150.0,0.000348,60]
[391667303,1760723471265,-150.0,0.000348,60]
[391667304,1760723471275,-150.0,0.000348,60]
[391667305,1760723471284,-500.0,0.000348,60]
[391667306,1760723471293,-500.0,0.000348,60]
[391667307,1760723471302,-200.0,0.000348,2]
[391667308,1760723471311,-200.0,0.000348,2]
[391667309,1760723471322,-300.0,0.000348,30]
[391667310,1760723471331,-300.0,0.000348,30]
[391667311,1760723471341,-407.373776,0.000348,30]
[391667312,1760723471351,-200.0,0.000348,2]
[391667313,1760723471363,-211.036725,0.000348,30]
[391667314,1760723471373,-211.036725,0.000348,30]
[391667315,1760723471383,-211.036725,0.000348,30]
[391667316,1760723471394,-151.0,0.000348,30]
[391667317,1760723471403,-211.036725,0.000348,30]
[391667318,1760723471413,-151.0,0.000348,30]
[391667319,1760723471423,-1091.0,0.000348,5]
[391667320,1760723471433,-151.0,0.000348,30]
[391667321,1760723471442,-151.0,0.000348,30]
[391667322,1760723471452,-151.0,0.000348,30]
[391667323,1760723471462,-151.0,0.000348,30]
[391667324,1760723471472,-151.0,0.000348,30]
[391667325,1760723471482,-151.0,0.000348,30]
[391667326,1760723471492,-315.603528,0.000348,30]
[391667327,1760723471502,-151.0,0.000348,30]
[391667328,1760723471511,-315.603528,0.000348,30]
[391667329,1760723471521,-151.0,0.000348,30]
[391667330,1760723471530,-151.0,0.000348,30]
[391667331,1760723471539,-151.0,0.000348,30]
[391667332,1760723471549,-315.603528,0.000348,30]
[391667333,1760723471558,-151.0,0.000348,30]
[391667334,1760723471568,-188.88797475,0.00034816,7]
[391667335,1760723471578,-150.0,0.00034827,7]
[391667336,1760723471588,-150.0,0.00034834,7]
[391667337,1760723471601,-150.0,0.00034834,7]
[391667338,1760723471612,-150.0,0.00034834,7]
[391667339,1760723471621,-150.0,0.00034846,7]
[391667340,1760723471631,-2395.18719493,0.0003485,60]
[391667341,1760723471641,-188.88797475,0.00034852,7]
[391667342,1760723471650,-150.0,0.00034855,60]
[391667343,1760723471659,-200.0,0.00034855,60]
[391667344,1760723471669,-500.0,0.00034855,60]
[391667345,1760723471680,-500.0,0.00034855,60]
[391667346,1760723471689,-500.0,0.00034855,60]
[391667347,1760723471698,-150.0,0.00034855,60]
[391667348,1760723471708,-500.0,0.00034855,60]
[391667349,1760723471717,-173.96283758,0.00034855,60]
[391667350,1760723471726,-223.8937127,0.00034855,60]
[391667351,1760723471736,-150.0,0.00034855,60]
[391667352,1760723471745,-578.14792994,0.00034855,60]
[391667353,1760723471755,-500.0,0.00034855,60]
[391667354,1760723471764,-150.0,0.00034858,7]
[391667355,1760723471774,-150.0,0.00034871,7]
[391667356,1760723471783,-150.0,0.00034871,7]
[391667357,1760723471792,-150.0,0.00034873,7]
[391667358,1760723471802,-188.88797475,0.00034888,7]
[391667359,1760723472071,-150.0,0.00034893,7]
[391667360,1760723472086,-150.0,0.00034893,7]
[391667361,1760723472096,-150.0,0.00034893,7]
[391667362,1760723472109,-3737.29185344,0.000349,24]
[391667363,1760723472119,-242.78778416,0.000349,120]
[391667364,1760723472129,-505.58424344,0.000349,2]
[391667365,1760723472139,-11600.0,0.000349,12]
[391667366,1760723472149,-150.0,0.00034908,7]
[391667367,1760723472159,-150.0,0.0003491,60]
[391667368,1760723472169,-500.0,0.0003491,60]
[391667369,1760723472179,-500.0,0.0003491,60]
[391667370,1760723472188,-500.0,0.0003491,60]
[391667371,1760723472198,-154.53232735,0.0003491,60]
[391667372,1760723472208,-500.0,0.0003491,60]
[391667373,1760723472217,-150.0,0.0003491,60]
[391667374,1760723472227,-500.0,0.0003491,60]
[391667375,1760723472237,-150.0,0.00034919,7]
[391667376,1760723472246,-150.0,0.00034919,7]
[391667377,1760723472255,-150.0,0.00034919,7]
[391667378,1760723472265,-188.88797475,0.00034924,7]
[391667379,1760723472275,-150.0,0.00034945,7]
[391667380,1760723472284,-959.67940723,0.0003495,120]
[391667381,1760723472295,-150.0,0.00034952,7]
[391667382,1760723472305,-188.88797475,0.00034959,7]
[391667383,1760723472315,-150.0,0.00034964,60]
[391667384,1760723472324,-500.0,0.00034964,60]
[391667385,1760723472333,-500.0,0.00034964,60]
[391667386,1760723472342,-500.0,0.00034964,60]
[391667387,1760723472352,-500.0,0.00034964,60]
[391667388,1760723472362,-151.78574834,0.00034964,60]
[391667389,1760723472372,-407.23852358,0.00034964,60]
[391667390,1760723472382,-150.0,0.00034965,7]
[391667391,1760723472392,-1087.96993,0.0003498,2]
[391667392,1760723472401,-150.0,0.00034982,7]
[391667393,1760723472411,-150.0,0.00034982,7]
[391667394,1760723472420,-150.0,0.00034991,7]
[391667395,1760723472430,-188.88797475,0.00034995,7]
[391667396,1760723472439,-150.0,0.00035,7]
[391667397,1760723472449,-400.05225362,0.00035,2]
[391667398,1760723472458,-1215.52051536,0.00035,2]
[391667399,1760723472467,-200000.0,0.00035,20]
[391667400,1760723472478,-500.0,0.00035,6]
[391667401,1760723472488,-1950.18988925,0.00035,20]
[391667402,1760723472498,-10000.0,0.00035,2]
[391667403,1760723472507,-2500.0,0.00035,30]
[391667404,1760723472516,-200.0,0.00035,120]
[391667405,1760723472526,-300.0,0.00035,120]
[391667406,1760723472536,-2600.0,0.00035,90]
[391667407,1760723472546,-2672.74758479,0.00035,60]